Cogmind - Beta 14 @@@ ROGUE MODE // 2024.10.22 @ 23:46:39 Player: Ae Result: Destroyed by S-10 Pest with Light Assault Rifle Performance ------------- Evolutions (0) 0 Regions Visited (2) 400 Robots Destroyed (36) 180 Value Destroyed (825) 825 Prototype IDs (12) 240 Alien Tech Used (0) 0 Bonus (0) 0 TOTAL SCORE: 1645 Bonus ------- None Cogmind --------- Core Integrity 0/250 Matter 230/300 Energy 280/280 System Corruption 0% Temperature Cool (0) Movement Walking (200) Ox1 Location -10/Subcaves Parts ------- > --- POWER (1) -------- Cooled Ion Engine > --- PROPULSION (2) --- Cargo Legs > --- UTILITY (2+1) ---- High-capacity Storage Unit Subdweller Optics Hardened Light Armor Plating (+) > --- WEAPON (2) ------- Particle Cannon Makeshift Spear > --- INVENTORY (20) --- Subdweller Power Source Makeshift Power Source Spiked Treads Subdweller Monowheel Huge Storage Unit High-capacity Matter Pod (200) Structural Scanner Subdweller Optics Subdweller Optics Makeshift Light Armor Plating Scrap Shield Trap Extractor (1/4 Shrapnel) Subdweller Laser Subdweller Laser Particle Cannon Subdweller Beam Cannon Subdweller Beam Cannon Grenade Launcher Grenade Launcher Peak State ------------ > --- POWER ------------ Cooled Ion Engine > --- PROPULSION ------- Cargo Legs > --- UTILITY ---------- High-capacity Storage Unit Subdweller Optics Hardened Light Armor Plating > --- WEAPON ----------- Particle Cannon Makeshift Spear > --- INVENTORY -------- Subdweller Power Source Makeshift Power Source Spiked Treads Subdweller Monowheel Huge Storage Unit High-capacity Matter Pod Structural Scanner Subdweller Optics Subdweller Optics Makeshift Light Armor Plating Scrap Shield Trap Extractor Subdweller Laser Subdweller Laser Particle Cannon Subdweller Beam Cannon Subdweller Beam Cannon Grenade Launcher Grenade Launcher [Rating: 33] Favorites ----------- Power Cooled Ion Engine Engine Cooled Ion Engine Propulsion Light Treads Treads Light Treads Leg Cargo Legs Wheel Wheel Utility High-capacity Storage Unit Device Seismic Detector Storage High-capacity Storage Unit Protection Hardened Light Armor Plating Weapon Light Assault Rifle Energy Gun EM Shotgun Energy Cannon Particle Cannon Ballistic Gun Light Assault Rifle Ballistic Cannon Battle Cannon Launcher Grenade Launcher Special Weapon Mining Laser Piercing Weapon Makeshift Spear Build | -11 -10 -10 ------- Run | Yrd Mat Sub Slots Evolved . | . . . Power . | . . . Propulsion . | . . . Utility . | . . . Weapon . | . . . Parts Attached 56 | 7 17 32 Power 2 | 1 1 . Engine 2 | 1 1 . Core . | . . . Reactor . | . . . Propulsion 7 | 2 3 2 Treads 2 | . 1 1 Leg 3 | 2 . 1 Wheel 2 | . 2 . Hover . | . . . Flight . | . . . Utility 20 | 2 3 15 Device 14 | 1 1 12 Storage 3 | 1 2 . Processor . | . . . Hackware . | . . . Protection 3 | . . 3 Artifact . | . . . Weapon 27 | 2 10 15 Energy Gun 6 | . . 6 Energy Cannon 1 | . . 1 Ballistic Gun 7 | 2 5 . Ballistic Cannon 4 | . 1 3 Launcher 4 | . 3 1 Special Weapon 4 | . 1 3 Impact Weapon . | . . . Slashing Weapon . | . . . Piercing Weapon 1 | . . 1 Special Melee Weapon . | . . . Unidentified Prototypes 1 | . 1 . Parts Lost 7 | . 1 6 Power . | . . . Propulsion 2 | . 1 1 Utility 2 | . . 2 Weapon 3 | . . 3 Highest Loss Streak 2 | . 1 2 To Critical Strikes . | . . . Average Slot Usage (%) 94 | . 99 90 Engine 13 | . 14 12 Treads 8 | . 11 5 Leg 6 | . 5 6 Wheel 8 | . 11 5 Device 12 | . 14 10 Storage 13 | . 14 12 Protection 4 | . . 9 Energy Gun 6 | . . 13 Energy Cannon 3 | . . 5 Ballistic Gun 13 | . 27 . Special Weapon 1 | . . 2 Peak Build Rating 33 | 7 12 33 Average Rating 16 | 5 8 23 On Entrance 6 | . 7 12 Naked Turns . | . . . Heaviest Build 62 | 13 54 62 Greatest Support 55 | 20 20 55 Greatest Overweight (x) 5 | . 5 5 Average Overweight (x) 2 | . 2 2 Largest Inventory Capacity 20 | 8 20 20 Average Capacity 17 | 7 15 20 Most Carried 20 | 6 20 20 Average Carried 15 | 5 10 19 Final Capacity 20 | 8 20 20 Final Carried 20 | 6 20 20 Class Distribution -------------------- 100% | Mutant Dominant Class ---------------- Mutant | -10/Materials Mutant | -10/Subcaves Resources | -11 -10 -10 ----------- Run | Yrd Mat Sub Matter Collected 1298 | 292 533 473 Remotely . | . . . Salvage Created 872 | 105 348 419 Parts 66 | 9 37 20 Haulers Intercepted 2 | . 2 . Recyclers Shooed 1 | . 1 . Parts Field Recycled . | . . . Retrieved Matter . | . . . Parts Self-Destructed 5 | . . 5 Prevented . | . . . Kills | -11 -10 -10 ------- Run | Yrd Mat Sub Combat Hostiles Destroyed 26 | . 13 13 Guns 9 | . 6 3 Cannons 4 | . . 4 AOE 12 | . 7 5 Classes Destroyed 9 | 2 5 2 Builder 3 | . 3 . Tunneler 3 | 2 1 . Hauler 2 | . 2 . Recycler 1 | 1 . . Operator 1 | . 1 . Swarmer 9 | . 9 . Grunt 8 | . 4 4 Sentry 1 | . . 1 Subdweller 8 | . . 8 Best Kill Streak 3 | 3 3 2 Combat Bots Only 3 | . 3 2 Max Kills in Single Turn 2 | 1 2 1 Gunslinging . | . . . Exploded 2 | . 2 1 Melee . | . . . Uniques/NPCs Destroyed . | . . . Combat | -11 -10 -10 -------- Run | Yrd Mat Sub Hostile Shots Fired 128 | . 43 85 Missed 37 | . 12 25 Damage Taken 1664 | . 285 1379 Core 252 | . 40 212 Absorbed by Shields . | . . . Core Remaining (%) 100 | 100 . . Volleys Fired 146 | 11 57 78 Largest 2 | 2 2 2 Hottest 108 | 40 100 108 Shots Fired 235 | 22 104 109 Gun 157 | 22 92 43 Cannon 40 | . 2 38 Launcher 21 | . 7 14 Special 17 | . 3 14 Kinetic 133 | 22 94 17 Thermal 38 | . 3 35 Explosive 21 | . 7 14 Electromagnetic 43 | . . 43 Robot Hit Streak 19 | 5 12 19 Robot Miss Streak 5 | 2 5 2 Penetration Max . | . . . Secondary Targets 2 | . 2 . Max Gunslinging Chain 1 | . 1 . Shots Hit Robots 143 | 16 55 72 Core Hits 64 | 5 33 26 Critical Kills 1 | . 1 . Critical Parts Destroyed . | . . . Critical Strikes 2 | . 2 . Destroy 1 | . 1 . Blast 1 | . 1 . Melee Attacks 4 | . . 4 Impact . | . . . Slashing . | . . . Piercing 4 | . . 4 Sneak Attacks . | . . . Combat Hostiles . | . . . Follow-up Attacks . | . . . Damage Inflicted 2447 | 139 960 1348 Guns 985 | 139 458 388 Cannons 536 | . 36 500 Explosions 926 | . 466 460 Melee . | . . . Ramming . | . . . Kinetic 844 | 139 494 211 Thermal 289 | . . 289 Explosive 926 | . 466 460 Electromagnetic 388 | . . 388 Impact . | . . . Slashing . | . . . Piercing . | . . . Highest Corruption . | . . . Average Corruption . | . . . Corruption Purged . | . . . Corruption Blocked . | . . . Overload Shots . | . . . Overflow Damage 4 | . 2 2 Projectiles . | . . . Explosions 4 | . 2 2 Melee . | . . . Knockbacks 1 | . . 1 Impact . | . . . Kinetic 1 | . . 1 Secondary . | . . . Self-Inflicted Damage 54 | . 12 42 Shots 3 | . 1 2 Rammed . | . . . Targets Rammed . | . . . Kicked . | . . . Crushed . | . . . Highest Temperature 24 | . 24 21 Average Temperature 10 | . 10 10 Received Heat Transfer 339 | . 12 327 Siege Activations . | . . . Robots Corrupted 1 | . . 1 Combat Hostiles 1 | . . 1 Parts Fried 2 | . . 2 Impact Corruptions . | . . . Robots Melted . | . . . Combat Hostiles . | . . . Parts Melted 1 | . . 1 Heat Transferred 518 | . . 518 Parts Sabotaged . | . . . Parts Stolen . | . . . Parts Stripped . | . . . Power Chain Reactions . | . . . Alert | -11 -10 -10 ------- Run | Yrd Mat Sub Peak Influence 300 | 15 300 . Initial 9 | . 9 . Average 76 | 5 80 . Maximum Alert Level 1 | . 1 . Low Security (%) 89 | 100 88 . Level 1 10 | . 11 . Level 2 . | . . . Level 3 . | . . . Level 4 . | . . . Level 5 . | . . . High Security . | . . . Max Security . | . . . Squads Dispatched 1 | . 1 . Investigation . | . . . Extermination . | . . . Reinforcement 1 | . 1 . Assault . | . . . Garrison . | . . . Intercept . | . . . Searches Triggered . | . . . Construction Impeded . | . . . Haulers Reinforced . | . . . Active Scanning Responses . | . . . Cargo Convoy Interrupts . | . . . Stealth | -11 -10 -10 --------- Run | Yrd Mat Sub Distress Signals 3 | . 3 . Communications Jammed . | . . . Distress Signals . | . . . Times Spotted 42 | . 24 18 Peak Tracking Total 5 | . 5 5 Tactical Retreats 3 | . 2 1 Traps | -11 -10 -10 ------- Run | Yrd Mat Sub Traps Triggered 2 | . 1 1 Indirectly . | . . . Trap Hack Attempts . | . . . Triggered . | . . . Disarmed . | . . . Reprogrammed . | . . . Reused . | . . . Traps Extracted . | . . . Installed . | . . . Triggered . | . . . Most Traps Carried 1 | . . 1 Machines | -11 -10 -10 ---------- Run | Yrd Mat Sub Machines Disabled 2 | . 1 1 Max in Single Turn 1 | . 1 1 Machines Repaired . | . . . Machines Dismantled . | . . . Machines Sabotaged . | . . . Overloaded Fab Kills . | . . . Hacking | -11 -10 -10 --------- Run | Yrd Mat Sub Machines Accessed 7 | . 6 1 Terminals 6 | . 6 . Fabricators . | . . . Repair Stations . | . . . Recycling Units . | . . . Scanalyzers . | . . . Garrison Access . | . . . Total Hacks 23 | . 22 1 Successful 13 | . 12 1 Failed 10 | . 10 . Catastrophic . | . . . Database Lockouts . | . . . Manual 22 | . 22 . Terminals 22 | . 22 . Fabricators . | . . . Repair Stations . | . . . Recycling Units . | . . . Scanalyzers . | . . . Garrison Access . | . . . Terminal Hacks 2 | . 1 1 Unreport Threat 1 | . 1 . Derelict Proto ID Bank 1 | . . 1 Fabricator Hacks . | . . . Repair Station Hacks . | . . . Recycling Unit Hacks . | . . . Scanalyzer . | . . . Garrison Access Hacks . | . . . Unauthorized Hacks 11 | . 11 . Terminals 11 | . 11 . Botnet 5 | . 5 . Skim 6 | . 6 . Fabricators . | . . . Repair Stations . | . . . Recycling Units . | . . . Scanalyzers . | . . . Garrison Access . | . . . Data Cores Recovered 1 | . 1 . Used 1 | . 1 . Hacking Detections 6 | . 6 . Full Trace Events . | . . . Feedback Events . | . . . Feedback Blocked . | . . . Robot Schematics Acquired . | . . . Robots Built . | . . . Authchips . | . . . Time . | . . . Total Robot Build Rating . | . . . Part Schematics Acquired . | . . . Parts Built . | . . . Authchips . | . . . Time . | . . . Total Part Build Rating . | . . . Parts Repaired . | . . . Time . | . . . Parts Recycled . | . . . Recycled Matter . | . . . Retrieved Matter . | . . . Retrieved Components . | . . . Parts Scanalyzed . | . . . Part Schematics Acquired . | . . . Parts Damaged . | . . . Bothacking | -11 -10 -10 ------------ Run | Yrd Mat Sub Used RIF Installer . | . . . Robots Hacked . | . . . Non-combat . | . . . Combat . | . . . Robot Hacks Applied . | . . . Relay Couplers Released . | . . . Fabnet Peak Effective % . | . . . Robots Rewired . | . . . Allies Hacked . | . . . Hacks Repelled . | . . . Allies | -11 -10 -10 -------- Run | Yrd Mat Sub Total Allies . | . . . Largest Group . | . . . Highest-Rated Group . | . . . Highest-Rated Ally . | . . . Total Orders . | . . . Ally Attacks . | . . . Total Damage . | . . . Kills . | . . . Allies Corrupted . | . . . Allies Melted . | . . . Intel | -11 -10 -10 ------- Run | Yrd Mat Sub Robot Analysis Total . | . . . Derelict Logs Recovered 1 | . . 1 Drone Launches . | . . . Drone Recoveries . | . . . Exploration | -11 -10 -10 ------------- Run | Yrd Mat Sub Turns Passed 4189 | 110 1937 2142 Spaces Moved 2106 | 52 1057 997 Core 6 | 6 . . Treads 209 | . 209 . Legs 862 | 46 280 536 Wheels 1029 | . 568 461 Hover . | . . . Flight . | . . . Fastest Speed 50 | 50 110 155 Average Speed 166 | 111 156 179 Slowest Speed 240 | 120 240 200 Overloaded Moves . | . . . Propulsion Burnouts . | . . . Robots Hopped . | . . . Cave-ins Triggered . | . . . Exploration Rate (%) 50 | 5 92 55 Regions Visited 2 Branch Regions 1 Pre-discovered Areas 3 | . 2 1 Known Exits Taken 1 | . 1 . Unknown Exits Taken 1 | 1 . . Scrap Searched 7 | . . 7 Spaces Dug . | . . . Terrain Destroyed 106 | . 36 70 Melee . | . . . Projectile . | . . . AOE 106 | . 36 70 Terrain Rammed . | . . . Walls Destroyed . | . . . Machines Disabled . | . . . Actions | -11 -10 -10 --------- Run | Yrd Mat Sub Total 2540 | 82 1244 1214 Wait 126 | 7 67 52 Move 2104 | 51 1056 997 Hop . | . . . Pick Up 61 | 6 28 27 Fast Attach 9 | 7 1 1 Attach 12 | . 2 10 Detach 2 | . 1 1 Swap 35 | . 14 21 Drop 41 | . 18 23 Fire 146 | 11 57 78 Melee 4 | . . 4 Ram . | . . . Kick . | . . . Crush . | . . . Escape Stasis . | . . . Rewire . | . . . Trap . | . . . Miscellaneous . | . . . Route ------- -11/Scrapyard -10/Materials (discovered 5 exits: [*Mat x3] / Min / *Sub) -10/Subcaves (discovered 2 exits: [*Mat x2]) History --------- Turn | Location | Event 6 | -11/Scrapyard | Discovered new exit (range 15) 111 | -11/Scrapyard | Entered Materials 302 | -10/Materials | Build established: Mutant 351 | -10/Materials | Discovered new exit (range 8) 1536 | -10/Materials | Discovered new exit (range 15) 1704 | -10/Materials | Learned location of 2 exits from Mines 1736 | -10/Materials | Discovered new exit (range 10) 1762 | -10/Materials | Identified exit to Mines 1762 | -10/Materials | Identified exit to Subcaves 1774 | -10/Materials | Learned location of 3 exits from Materials 1777 | -10/Materials | Learned Storage stockpile data 1778 | -10/Materials | Learned 4 Recycling zone layouts 2048 | -10/Materials | Entered Subcaves 2351 | -10/Subcaves | A swath of the cavern ceiling suddenly collapsed 2492 | -10/Subcaves | Discovered new exit (range 11) 2499 | -10/Subcaves | A swath of the cavern ceiling suddenly collapsed 2521 | -10/Subcaves | Shifting Twisted Machinery released Shrapnel Trap 2681 | -10/Subcaves | Shifting Twisted Machinery released Sub. Optics 2900 | -10/Subcaves | Visited 4L-MR0's lab 2925 | -10/Subcaves | Found Cargo Legs 2928 | -10/Subcaves | Attached Cargo Legs, gained temporary slots: Utility x2 3193 | -10/Subcaves | Shifting Twisted Machinery released Sub. Beam Cannon 3193 | -10/Subcaves | Shifting Twisted Machinery released Mak. Power Source 3589 | -10/Subcaves | Core integrity fell below 50% 3680 | -10/Subcaves | Core integrity fell below 20% 3879 | -10/Subcaves | Shifting Twisted Machinery released Mak. Light Armor Plating 3894 | -10/Subcaves | Discovered new exit (range 5) 3979 | -10/Subcaves | Shifting Twisted Machinery released Mak. Flight Unit 4190 | -10/Subcaves | Destroyed by S-10 Pest with Light Assault Rifle Last Messages --------------- 03860_ G-34 Mercenary destroyed. 03862_ Destroyed Aluminum Leg. 03864_ G-47 Trooper destroyed. 03866_ The unstable cave ceiling collapses. 03874_ Acquired 21 matter. 03876_ Acquired 18 matter. Mak. Light Armor Plating falls loose from the Twisted Machinery. 03894_ EXIT=FOUND 03900_ Dropped EM Pulse Gun. 03901_ Acquired Mak. Light Armor Plating. 03914_ Y-45 Defender destroyed. 03920_ Acquired 36 matter. 03925_ The unstable cave ceiling collapses. Mak. Flight Unit falls loose from the Twisted Machinery. 03992_ Acquired 18 matter. 04006_ Acquired 7 matter. 04056_ G-34 Mercenary destroyed. 04060_ Ion Engine fries itself beyond repair. 04062_ Aluminum Leg fries itself beyond repair. 04066_ G-47 Trooper destroyed. Map ----- +----------------------------------------------------+ | #?????????????## ## ### | | % #?????????????## ## | | # % #???????###???## | | = #???????# #### | | #?????????# # " | | #???????###### "" | | # ## ###??????## # # #### " | | ##### ####??????##### # #### " | | ???## ## #######" ## ## ### " | | ??## ## "" # # ## """ | | ?##% % "" # # #### ####### | | ?# ## ####"## ##### ######## | | ?# % ## ####""## ##??####??????? | | ## % " ### """ ##???###???????? | | # """### " ### #?#########????? | | # % # %=""""## " ###?#" #?# ### # #????? | | ##### #### """" "=###??## #### #????? | | ????# #??# %"" "%"##??# [ ##???? | | ????# #??# ""&""#??# " # #???? | | ????######??# "" ""#??##" # #???? | | ???????????# ### =""" ""#???#### < #???? | | ???????????## ##?## """ ""#??## ## # ##???? | | ????????????###???###"## #?## ## #### ####????? | | ????????????????????# # ###" " ####??###???????? | | ??????????????????#"# # $ "" ""##???????????????? | | ??????????????????# s@ ##"##????????????????? | | ??????????????????# #######?????????????????? | | ??????????????????# s #???????????????????????? | | ??????????????????## #???????????????????????? | | ???????????????????## ????????????????????????? | | ????????????????????##s ????????????????????????? | | ????????????????????? ?????????????????????????? | | ???????????????????? ?????????????????????????? | | ??????????????????? ?????????????????????????? | | ???????????????????" ??????????????????????????? | | ??????????????????#" "??????????????????????????? | | ??????????????????#""""??????????????????????????? | | ??????????????????#####??????????????????????????? | | ?????????????????????????????????????????????????? | | ?????????????????????????????????????????????????? | | ?????????????????????????????????????????????????? | | ?????????????????????????????????????????????????? | | ?????????????????????????????????????????????????# | | ?????????????????????????????????????????????????# | | ?????????????????????????????????????????????????# | | ???????????????????????????????????????????####### | | ???????????????????????????????????????????####### | | ????????????????????????????????????????##### """ | | ????????????????????????????????????????##### & | | ????????????????????????????????????????##""# ## | +----------------------------------------------------+ Best States ------------- Heat Dissipation 25 Energy Generation 14 Energy Capacity 280 Matter Stores 300 Matter Capacity 300 Sight Range 21 Terrain Scan Density 10 Armor Coverage 150 Evasion (%) 55 Recoil Reduction 1 Item Schematics ----------------- None Robot Schematics ------------------ None Fabricated ------------ Nothing Alien Tech Used ----------------- None Achievements -------------- None Challenges ------------ None Game ------ Seed InertialTechComputer Manual? 0 Play Time 00:46:09 Cumulative 83.8 hours Start 2024.10.22 @ 22:43:43 End 2024.10.22 @ 23:46:39 Sessions 1 Manual Loads 0 Difficulty Rogue Special Mode None Game No. 139 Rogue 111 Adventurer 28 Explorer 0 Win Type - Total 0 Types 0/0/0/0/0/0/0/0/0 Lore% 27 Gallery% 30 Achievement% 32 Wizard Run 0 Options --------- Layout 0 ASCII 0 Keyboard 1 Movement Numpad Keybinds 0 Fullscreen 2 Font 36/Smallcaps Map View 76x50 Zoom Use 0% Tactical HUD 1 Map Filters NONE Filters NONE Steam 1 RUN: a3ed63fc-88e4-44f7-9d65-d415395005c5